[Event "Early-Titled-Tuesday-Blitz-March-05-2024"]
[Site "Chess.com"]
[Date "2024.03.05"]
[Round "9"]
[White "Yeritsyaan"]
[Black "Rodalquilar"]
[Result "1-0"]
[WhiteElo "2630"]
[BlackElo "2795"]
[TimeControl "180+1"]
[EndTime "9:48:08 PST"]
[Termination "Yeritsyaan won on time"]

1. c4 {[%clk 0:03:00.9]} 1... e6 {[%clk 0:02:13.5]} 2. Nf3 {[%clk 0:02:59.2]}
2... d5 {[%clk 0:02:13.9]} 3. d4 {[%clk 0:02:57.9]} 3... Nf6 {[%clk 0:02:13.8]}
4. Nc3 {[%clk 0:02:56.8]} 4... a6 {[%clk 0:02:14.2]} 5. cxd5 {[%clk 0:02:55.6]}
5... exd5 {[%clk 0:02:15.1]} 6. Bf4 {[%clk 0:02:55.8]} 6... Bd6 {[%clk
0:02:13.4]} 7. Bxd6 {[%clk 0:02:55.6]} 7... Qxd6 {[%clk 0:02:13.8]} 8. e3 {[%clk
0:02:56.1]} 8... O-O {[%clk 0:02:13.9]} 9. Bd3 {[%clk 0:02:56.4]} 9... Bg4
{[%clk 0:02:13.7]} 10. h3 {[%clk 0:02:54.7]} 10... Bxf3 {[%clk 0:02:14]} 11.
Qxf3 {[%clk 0:02:54.4]} 11... Nbd7 {[%clk 0:02:14.4]} 12. O-O {[%clk 0:02:52.9]}
12... Rfe8 {[%clk 0:02:13.5]} 13. a3 {[%clk 0:02:50.4]} 13... a5 {[%clk
0:02:13.5]} 14. Rac1 {[%clk 0:02:50.2]} 14... c6 {[%clk 0:02:13.7]} 15. Rfd1
{[%clk 0:02:37.1]} 15... Qe7 {[%clk 0:02:13.5]} 16. g3 {[%clk 0:02:32.7]} 16...
Qe6 {[%clk 0:01:58.6]} 17. Bf5 {[%clk 0:02:29.9]} 17... Qd6 {[%clk 0:01:58.8]}
18. Kg2 {[%clk 0:02:23]} 18... Nb6 {[%clk 0:01:52.9]} 19. Bd3 {[%clk 0:02:20.9]}
19... a4 {[%clk 0:01:53.2]} 20. g4 {[%clk 0:02:13.5]} 20... Qe7 {[%clk
0:01:42.9]} 21. Ne2 {[%clk 0:02:07.2]} 21... Ne4 {[%clk 0:01:39.4]} 22. Ng3
{[%clk 0:01:58.5]} 22... Nd6 {[%clk 0:01:36.4]} 23. Nf5 {[%clk 0:01:57.4]} 23...
Nxf5 {[%clk 0:01:36.5]} 24. Qxf5 {[%clk 0:01:58]} 24... g6 {[%clk 0:01:36.2]}
25. Qf4 {[%clk 0:01:58.3]} 25... Nc8 {[%clk 0:01:29.3]} 26. Rc2 {[%clk
0:01:53.7]} 26... Nd6 {[%clk 0:01:29.4]} 27. Rdc1 {[%clk 0:01:49.4]} 27... Kg7
{[%clk 0:01:29.4]} 28. Rc5 {[%clk 0:01:43.8]} 28... Qf6 {[%clk 0:00:57.6]} 29.
Qxf6+ {[%clk 0:01:43.1]} 29... Kxf6 {[%clk 0:00:58.5]} 30. h4 {[%clk 0:01:36.5]}
30... h5 {[%clk 0:00:50.6]} 31. g5+ {[%clk 0:01:36.4]} 31... Kg7 {[%clk
0:00:51.1]} 32. Kg3 {[%clk 0:01:34.7]} 32... f6 {[%clk 0:00:51]} 33. gxf6+
{[%clk 0:01:33.2]} 33... Kxf6 {[%clk 0:00:51.4]} 34. Rg1 {[%clk 0:01:31.8]}
34... Rg8 {[%clk 0:00:41]} 35. f4 {[%clk 0:01:25.4]} 35... Nf5+ {[%clk
0:00:37.8]} 36. Kf2 {[%clk 0:00:47.5]} 36... Nxh4 {[%clk 0:00:37.7]} 37. Rg5
{[%clk 0:00:48.2]} 37... Rh8 {[%clk 0:00:28.9]} 38. Rc1 {[%clk 0:00:47]} 38...
Rag8 {[%clk 0:00:09.3]} 39. Rcg1 {[%clk 0:00:45.6]} 39... Kf7 {[%clk 0:00:09.8]}
40. Rh1 {[%clk 0:00:32.8]} 40... Nf5 {[%clk 0:00:07.6]} 41. Bxf5 {[%clk
0:00:33]} 41... gxf5 {[%clk 0:00:08]} 42. Rxf5+ {[%clk 0:00:29.9]} 42... Ke6
{[%clk 0:00:07.1]} 43. Rfxh5 {[%clk 0:00:29.8]} 43... Rxh5 {[%clk 0:00:07.4]}
44. Rxh5 {[%clk 0:00:30.2]} 44... Rg7 {[%clk 0:00:07.4]} 45. Kf3 {[%clk
0:00:24.3]} 45... Kd6 {[%clk 0:00:07.6]} 46. Rh6+ {[%clk 0:00:22.7]} 46... Kc7
{[%clk 0:00:06.2]} 47. f5 {[%clk 0:00:23.4]} 47... Rg1 {[%clk 0:00:06.4]} 48.
Kf4 {[%clk 0:00:23.6]} 48... Rf1+ {[%clk 0:00:05.3]} 49. Ke5 {[%clk 0:00:23.3]}
49... Rf3 {[%clk 0:00:05.9]} 50. e4 {[%clk 0:00:22.4]} 50... Re3 {[%clk
0:00:05.5]} 51. Rh4 {[%clk 0:00:21]} 51... Re2 {[%clk 0:00:05.8]} 52. f6 {[%clk
0:00:20.7]} 52... dxe4 {[%clk 0:00:04.6]} 53. Rxe4 {[%clk 0:00:21.3]} 53... Rf2
{[%clk 0:00:04.6]} 54. Ke6 {[%clk 0:00:20.9]} 54... Kd8 {[%clk 0:00:04.1]} 55.
Kf7 {[%clk 0:00:15.1]} 55... Kd7 {[%clk 0:00:03.8]} 56. Kg7 {[%clk 0:00:11.7]}
56... Rg2+ {[%clk 0:00:04.2]} 57. Kf8 {[%clk 0:00:12.3]} 57... Rxb2 {[%clk
0:00:04.6]} 58. f7 {[%clk 0:00:11.8]} 58... Rg2 {[%clk 0:00:03.8]} 59. Re7+
{[%clk 0:00:10.9]} 59... Kd6 {[%clk 0:00:02.4]} 60. Rxb7 {[%clk 0:00:11.3]}
60... Kd5 {[%clk 0:00:02.5]} 61. Ke8 {[%clk 0:00:09.6]} 61... Re2+ {[%clk
0:00:02.7]} 62. Re7 {[%clk 0:00:09.8]} 62... Rf2 {[%clk 0:00:03.3]} 63. f8=Q
{[%clk 0:00:08.9]} 63... Rxf8+ {[%clk 0:00:04.2]} 64. Kxf8 {[%clk 0:00:09.5]}
64... Kxd4 {[%clk 0:00:04.9]} 65. Ra7 {[%clk 0:00:10.3]} 65... c5 {[%clk
0:00:05.4]} 66. Rxa4+ {[%clk 0:00:11]} 66... c4 {[%clk 0:00:06.3]} 67. Ra8
{[%clk 0:00:09.7]} 67... Kc3 {[%clk 0:00:06.8]} 68. Rc8 {[%clk 0:00:10]} 68...
Kb3 {[%clk 0:00:07.2]} 69. a4 {[%clk 0:00:10.7]} 69... c3 {[%clk 0:00:07.8]} 70.
a5 {[%clk 0:00:11.2]} 70... c2 {[%clk 0:00:08.7]} 71. a6 {[%clk 0:00:11.1]}
71... c1=Q {[%clk 0:00:09]} 72. Rxc1 {[%clk 0:00:11.6]} 1-0

[Event "Early-Titled-Tuesday-Blitz-March-05-2024"]
[Site "Chess.com"]
[Date "2024.03.05"]
[Round "9"]
[White "crazy_m_attack"]
[Black "EvgenyBurmakin"]
[Result "1-0"]
[WhiteElo "2480"]
[BlackElo "2347"]
[TimeControl "180+1"]
[EndTime "9:48:11 PST"]
[Termination "crazy_m_attack won by resignation"]

1. e4 {[%clk 0:03:00.9]} 1... c5 {[%clk 0:02:59.3]} 2. Nf3 {[%clk 0:03:00.4]}
2... d6 {[%clk 0:02:59.6]} 3. d4 {[%clk 0:03:00.5]} 3... cxd4 {[%clk 0:03:00.5]}
4. Nxd4 {[%clk 0:03:01.4]} 4... Nf6 {[%clk 0:03:00.7]} 5. Nc3 {[%clk 0:03:02.1]}
5... a6 {[%clk 0:03:01.2]} 6. f3 {[%clk 0:03:02.6]} 6... e5 {[%clk 0:03:00.4]}
7. Nb3 {[%clk 0:03:03.2]} 7... Be6 {[%clk 0:03:00.4]} 8. Be3 {[%clk 0:03:03.8]}
8... Be7 {[%clk 0:03:00.4]} 9. Qd2 {[%clk 0:03:04.2]} 9... Nbd7 {[%clk
0:02:59.9]} 10. g4 {[%clk 0:02:56.3]} 10... b5 {[%clk 0:02:44.9]} 11. O-O-O
{[%clk 0:02:55.1]} 11... O-O {[%clk 0:02:42.7]} 12. g5 {[%clk 0:02:54.8]} 12...
b4 {[%clk 0:02:41.6]} 13. gxf6 {[%clk 0:02:53.5]} 13... bxc3 {[%clk 0:02:39.6]}
14. Qxc3 {[%clk 0:02:54.4]} 14... Nxf6 {[%clk 0:02:31]} 15. Na5 {[%clk
0:02:54.4]} 15... Qd7 {[%clk 0:02:18.1]} 16. Nc6 {[%clk 0:02:52.6]} 16... Rfc8
{[%clk 0:02:11.2]} 17. Nxe7+ {[%clk 0:02:50.6]} 17... Qxe7 {[%clk 0:02:12.1]}
18. Qa5 {[%clk 0:02:48.6]} 18... Ne8 {[%clk 0:01:30.6]} 19. Rg1 {[%clk
0:01:56.6]} 19... Qf6 {[%clk 0:01:06.3]} 20. Rg3 {[%clk 0:01:39]} 20... Qh4
{[%clk 0:00:51.9]} 21. Rd2 {[%clk 0:01:15.9]} 21... Nf6 {[%clk 0:00:37.6]} 22.
Bd3 {[%clk 0:00:55.9]} 22... h6 {[%clk 0:00:25.3]} 23. Rg1 {[%clk 0:00:35.7]}
23... d5 {[%clk 0:00:22.5]} 24. Rdg2 {[%clk 0:00:21]} 24... g6 {[%clk
0:00:19.2]} 25. exd5 {[%clk 0:00:17]} 25... Nxd5 {[%clk 0:00:18.8]} 26. Bd2
{[%clk 0:00:10.9]} 26... Nf4 {[%clk 0:00:15.8]} 27. Bxf4 {[%clk 0:00:10.9]}
27... Qxf4+ {[%clk 0:00:16.3]} 28. Kb1 {[%clk 0:00:11.1]} 28... Bf5 {[%clk
0:00:15.7]} 29. Bxf5 {[%clk 0:00:07.9]} 29... Qxf5 {[%clk 0:00:16.6]} 30. Rf1
{[%clk 0:00:03.5]} 30... Kg7 {[%clk 0:00:15.6]} 31. Qd2 {[%clk 0:00:03.5]} 31...
Rc6 {[%clk 0:00:14]} 32. a3 {[%clk 0:00:03.5]} 32... Rac8 {[%clk 0:00:13.6]} 33.
Qd1 {[%clk 0:00:04]} 33... Qf4 {[%clk 0:00:12.1]} 34. Rd2 {[%clk 0:00:03.1]}
34... h5 {[%clk 0:00:10.3]} 35. Re1 {[%clk 0:00:03.4]} 35... h4 {[%clk
0:00:08.6]} 36. Re4 {[%clk 0:00:03.6]} 36... Qg5 {[%clk 0:00:08.2]} 37. Rg4
{[%clk 0:00:03.2]} 37... Qf5 {[%clk 0:00:07.5]} 38. Rxh4 {[%clk 0:00:02.4]}
38... Rf6 {[%clk 0:00:08.1]} 39. Re4 {[%clk 0:00:02.4]} 39... Qxf3 {[%clk
0:00:07.8]} 40. Qxf3 {[%clk 0:00:03.3]} 40... Rxf3 {[%clk 0:00:08]} 41. Rxe5
{[%clk 0:00:04]} 41... Rf1+ {[%clk 0:00:08]} 42. Ka2 {[%clk 0:00:04.6]} 42...
Rc1 {[%clk 0:00:08.4]} 43. c3 {[%clk 0:00:03.9]} 43... Rh1 {[%clk 0:00:07.9]}
44. Re7 {[%clk 0:00:03.8]} 44... Rf8 {[%clk 0:00:05.7]} 45. Ra7 {[%clk
0:00:02.9]} 45... Kh6 {[%clk 0:00:05.1]} 46. Rxa6 {[%clk 0:00:02.6]} 46... f5
{[%clk 0:00:05.7]} 47. Rb6 {[%clk 0:00:03.1]} 47... f4 {[%clk 0:00:05.6]} 48.
Rg2 {[%clk 0:00:03.1]} 48... Rg8 {[%clk 0:00:03.8]} 49. Rf6 {[%clk 0:00:03.4]}
49... Rf1 {[%clk 0:00:03]} 50. Rg4 {[%clk 0:00:02.9]} 50... f3 {[%clk
0:00:03.1]} 51. Rgf4 {[%clk 0:00:03.2]} 51... Kg5 {[%clk 0:00:02.7]} 52. Rxf3
{[%clk 0:00:02.9]} 52... Rh1 {[%clk 0:00:02.9]} 53. h3 {[%clk 0:00:02]} 53...
Rxh3 {[%clk 0:00:02.6]} 54. Rxh3 {[%clk 0:00:02.9]} 54... Kxf6 {[%clk
0:00:02.9]} 55. a4 {[%clk 0:00:03.5]} 55... g5 {[%clk 0:00:03.5]} 56. Rg3 {[%clk
0:00:03.9]} 56... g4 {[%clk 0:00:04]} 57. a5 {[%clk 0:00:04.4]} 57... Kf5 {[%clk
0:00:04.5]} 58. b4 {[%clk 0:00:04.8]} 58... Kf4 {[%clk 0:00:05]} 59. Rg1 {[%clk
0:00:05.2]} 59... Kf3 {[%clk 0:00:05.4]} 60. Kb3 {[%clk 0:00:04.9]} 60... Kf2
{[%clk 0:00:05.8]} 61. Ra1 {[%clk 0:00:04.1]} 61... g3 {[%clk 0:00:05.7]} 62. a6
{[%clk 0:00:03.7]} 62... Re8 {[%clk 0:00:05.3]} 63. b5 {[%clk 0:00:02.8]} 63...
g2 {[%clk 0:00:05.7]} 64. Ra2+ {[%clk 0:00:02.3]} 64... Re2 {[%clk 0:00:05.5]}
65. Ra1 {[%clk 0:00:02.6]} 65... Re1 {[%clk 0:00:05.6]} 66. Ra2+ {[%clk
0:00:03.2]} 66... Re2 {[%clk 0:00:05.7]} 67. Rxe2+ {[%clk 0:00:02.2]} 67... Kxe2
{[%clk 0:00:06.6]} 68. a7 {[%clk 0:00:02.8]} 68... g1=Q {[%clk 0:00:06.7]} 69.
a8=Q {[%clk 0:00:03.7]} 69... Qb1+ {[%clk 0:00:06.7]} 70. Kc4 {[%clk 0:00:04.1]}
70... Qe4+ {[%clk 0:00:06.6]} 71. Qxe4+ {[%clk 0:00:03.2]} 71... Kd2 {[%clk
0:00:06.4]} 72. b6 {[%clk 0:00:03.7]} 72... Kc1 {[%clk 0:00:06.2]} 73. b7 {[%clk
0:00:03.7]} 73... Kd2 {[%clk 0:00:07.1]} 74. b8=Q {[%clk 0:00:03.9]} 1-0

[Event "Early-Titled-Tuesday-Blitz-March-05-2024"]
[Site "Chess.com"]
[Date "2024.03.05"]
[Round "9"]
[White "AEMEffi"]
[Black "Preobrazhenska_D2011"]
[Result "1/2-1/2"]
[WhiteElo "2327"]
[BlackElo "2432"]
[TimeControl "180+1"]
[EndTime "9:48:12 PST"]
[Termination "Game drawn by repetition"]

1. d4 {[%clk 0:03:00]} 1... Nf6 {[%clk 0:02:59.9]} 2. c4 {[%clk 0:02:58.5]} 2...
e6 {[%clk 0:03:00.1]} 3. Nc3 {[%clk 0:02:54]} 3... Bb4 {[%clk 0:03:00.4]} 4. e3
{[%clk 0:02:49.6]} 4... O-O {[%clk 0:02:58.4]} 5. Ne2 {[%clk 0:02:47.9]} 5... c6
{[%clk 0:02:51.3]} 6. a3 {[%clk 0:02:43.7]} 6... Ba5 {[%clk 0:02:51.1]} 7. g3
{[%clk 0:02:40.1]} 7... d5 {[%clk 0:02:49.2]} 8. cxd5 {[%clk 0:02:32.6]} 8...
exd5 {[%clk 0:02:47.1]} 9. Bg2 {[%clk 0:02:32.5]} 9... Bf5 {[%clk 0:02:42.7]}
10. O-O {[%clk 0:02:31.9]} 10... Nbd7 {[%clk 0:02:43]} 11. f3 {[%clk 0:02:30.1]}
11... Bg6 {[%clk 0:02:29]} 12. Nf4 {[%clk 0:02:19.1]} 12... Re8 {[%clk
0:02:27.5]} 13. Nxg6 {[%clk 0:02:11.4]} 13... hxg6 {[%clk 0:02:28.4]} 14. b4
{[%clk 0:02:07.9]} 14... Bc7 {[%clk 0:02:28]} 15. e4 {[%clk 0:02:06.8]} 15...
Nf8 {[%clk 0:01:52.6]} 16. e5 {[%clk 0:01:39.5]} 16... N6d7 {[%clk 0:01:52.3]}
17. f4 {[%clk 0:01:38.5]} 17... Ne6 {[%clk 0:01:51.2]} 18. f5 {[%clk 0:01:26.9]}
18... gxf5 {[%clk 0:01:51.2]} 19. Rxf5 {[%clk 0:01:27.1]} 19... Bb6 {[%clk
0:01:50.9]} 20. Be3 {[%clk 0:01:25.5]} 20... g6 {[%clk 0:01:50.2]} 21. Rf1
{[%clk 0:01:14.5]} 21... Nxe5 {[%clk 0:01:41.7]} 22. Kh1 {[%clk 0:01:14.4]}
22... Nc4 {[%clk 0:01:38.3]} 23. Bg1 {[%clk 0:01:11.9]} 23... Qg5 {[%clk
0:01:28.2]} 24. Qf3 {[%clk 0:01:07.9]} 24... Re7 {[%clk 0:01:24.1]} 25. Rad1
{[%clk 0:01:07.8]} 25... Nd2 {[%clk 0:01:01.9]} 26. h4 {[%clk 0:01:06.9]} 26...
Nxf3 {[%clk 0:00:51.5]} 27. hxg5 {[%clk 0:01:06.5]} 27... Nfxg5 {[%clk
0:00:52.4]} 28. Na4 {[%clk 0:01:00.4]} 28... Bc7 {[%clk 0:00:49.9]} 29. Bf2
{[%clk 0:00:52.7]} 29... Kg7 {[%clk 0:00:50.3]} 30. Rfe1 {[%clk 0:00:46.9]}
30... Rh8+ {[%clk 0:00:50.1]} 31. Kg1 {[%clk 0:00:47.3]} 31... Ree8 {[%clk
0:00:33.9]} 32. Nc5 {[%clk 0:00:36.9]} 32... Nxc5 {[%clk 0:00:24.1]} 33. dxc5
{[%clk 0:00:36.5]} 33... Ne4 {[%clk 0:00:16.8]} 34. Bxe4 {[%clk 0:00:23.1]}
34... dxe4 {[%clk 0:00:17.2]} 35. Bd4+ {[%clk 0:00:17.1]} 35... f6 {[%clk
0:00:15.1]} 36. Bf2 {[%clk 0:00:15.7]} 36... Re7 {[%clk 0:00:12.8]} 37. Rd4
{[%clk 0:00:13.7]} 37... Rhe8 {[%clk 0:00:12.7]} 38. Re3 {[%clk 0:00:12.1]}
38... f5 {[%clk 0:00:12]} 39. Kg2 {[%clk 0:00:11.4]} 39... Be5 {[%clk
0:00:12.5]} 40. Rd1 {[%clk 0:00:10.5]} 40... Bf6 {[%clk 0:00:10.5]} 41. a4
{[%clk 0:00:09.4]} 41... g5 {[%clk 0:00:10.9]} 42. b5 {[%clk 0:00:09.1]} 42...
f4 {[%clk 0:00:11.1]} 43. gxf4 {[%clk 0:00:08.2]} 43... gxf4 {[%clk 0:00:12]}
44. Rh3 {[%clk 0:00:08.4]} 44... e3 {[%clk 0:00:11.5]} 45. Be1 {[%clk
0:00:08.5]} 45... e2 {[%clk 0:00:07.7]} 46. Rdd3 {[%clk 0:00:04.8]} 46... Kf7
{[%clk 0:00:05.1]} 47. Kf3 {[%clk 0:00:03.8]} 47... Re3+ {[%clk 0:00:04.7]} 48.
Kxf4 {[%clk 0:00:03.9]} 48... Rxd3 {[%clk 0:00:03.6]} 49. Rxd3 {[%clk
0:00:03.6]} 49... Be5+ {[%clk 0:00:04.3]} 50. Kf3 {[%clk 0:00:03.6]} 50... Bb8
{[%clk 0:00:03.6]} 51. bxc6 {[%clk 0:00:03.5]} 51... bxc6 {[%clk 0:00:03.9]} 52.
Re3 {[%clk 0:00:03.7]} 52... Rxe3+ {[%clk 0:00:03.7]} 53. Kxe3 {[%clk
0:00:04.6]} 53... Be5 {[%clk 0:00:04]} 54. Kxe2 {[%clk 0:00:04.8]} 54... Bd4
{[%clk 0:00:04.6]} 55. Bb4 {[%clk 0:00:04.8]} 55... Ke6 {[%clk 0:00:04.9]} 56.
Kd3 {[%clk 0:00:05.7]} 56... Kd5 {[%clk 0:00:05.6]} 57. a5 {[%clk 0:00:05.5]}
57... Bxc5 {[%clk 0:00:06.1]} 58. Bd2 {[%clk 0:00:06]} 58... Ba3 {[%clk
0:00:06.7]} 59. a6 {[%clk 0:00:05.4]} 59... Bc5 {[%clk 0:00:06.1]} 60. Kc3
{[%clk 0:00:05.1]} 60... Bb6 {[%clk 0:00:06.6]} 61. Kb4 {[%clk 0:00:04.5]} 61...
Ke4 {[%clk 0:00:06.1]} 62. Kc4 {[%clk 0:00:04.2]} 62... Ke5 {[%clk 0:00:06.3]}
63. Bc3+ {[%clk 0:00:04.4]} 63... Kd6 {[%clk 0:00:06.7]} 64. Bb4+ {[%clk
0:00:05]} 64... c5 {[%clk 0:00:06.7]} 65. Bd2 {[%clk 0:00:05.1]} 65... Kc6
{[%clk 0:00:07]} 66. Be3 {[%clk 0:00:04.6]} 66... Kd6 {[%clk 0:00:05.9]} 67. Bf2
{[%clk 0:00:04.8]} 67... Kc6 {[%clk 0:00:06.1]} 68. Be3 {[%clk 0:00:05]} 68...
Kd6 {[%clk 0:00:04.7]} 69. Bf2 {[%clk 0:00:05.2]} 69... Kc6 {[%clk 0:00:05.4]}
70. Be3 {[%clk 0:00:05.5]} 1/2-1/2

[Event "Early-Titled-Tuesday-Blitz-March-05-2024"]
[Site "Chess.com"]
[Date "2024.03.05"]
[Round "9"]
[White "Arystanner"]
[Black "Abund"]
[Result "1/2-1/2"]
[WhiteElo "2893"]
[BlackElo "2772"]
[TimeControl "180+1"]
[EndTime "9:48:26 PST"]
[Termination "Game drawn - insufficient material"]

1. d4 {[%clk 0:02:57.4]} 1... d5 {[%clk 0:03:00.3]} 2. Nf3 {[%clk 0:02:57.5]}
2... Nf6 {[%clk 0:03:00.5]} 3. c4 {[%clk 0:02:57.6]} 3... e6 {[%clk 0:03:00.7]}
4. Nc3 {[%clk 0:02:57.7]} 4... a6 {[%clk 0:03:01.2]} 5. c5 {[%clk 0:02:55.9]}
5... b6 {[%clk 0:03:00.7]} 6. cxb6 {[%clk 0:02:56.5]} 6... c5 {[%clk 0:03:01.3]}
7. Bf4 {[%clk 0:02:57.2]} 7... Nbd7 {[%clk 0:02:30.3]} 8. Bc7 {[%clk 0:02:54.6]}
8... Qe7 {[%clk 0:02:30.6]} 9. e3 {[%clk 0:02:46.9]} 9... Bb7 {[%clk 0:02:16.4]}
10. Be2 {[%clk 0:02:37.9]} 10... g6 {[%clk 0:02:07.4]} 11. O-O {[%clk
0:02:26.8]} 11... Bg7 {[%clk 0:02:06.1]} 12. dxc5 {[%clk 0:02:26.6]} 12... Qxc5
{[%clk 0:02:00.3]} 13. Rc1 {[%clk 0:02:19.6]} 13... Qe7 {[%clk 0:01:47.4]} 14.
a3 {[%clk 0:02:14.1]} 14... O-O {[%clk 0:01:42.3]} 15. b4 {[%clk 0:02:13.8]}
15... Ne8 {[%clk 0:01:37.5]} 16. Na4 {[%clk 0:02:14.1]} 16... Rc8 {[%clk
0:01:21.3]} 17. Qd2 {[%clk 0:02:04.8]} 17... Nxc7 {[%clk 0:01:13.3]} 18. Rxc7
{[%clk 0:02:01.5]} 18... Rxc7 {[%clk 0:01:00.7]} 19. bxc7 {[%clk 0:02:01.9]}
19... Rc8 {[%clk 0:01:01.5]} 20. Rc1 {[%clk 0:02:02]} 20... Ne5 {[%clk 0:00:59]}
21. Nc5 {[%clk 0:01:22.2]} 21... Nxf3+ {[%clk 0:00:46.6]} 22. Bxf3 {[%clk
0:01:22.2]} 22... Qxc7 {[%clk 0:00:45]} 23. Rd1 {[%clk 0:01:21.6]} 23... a5
{[%clk 0:00:33.1]} 24. Nxb7 {[%clk 0:01:14.3]} 24... Qxb7 {[%clk 0:00:32.7]} 25.
bxa5 {[%clk 0:01:15.1]} 25... Bc3 {[%clk 0:00:20.5]} 26. Qd3 {[%clk 0:01:14.6]}
26... Bxa5 {[%clk 0:00:20.5]} 27. e4 {[%clk 0:01:13.1]} 27... dxe4 {[%clk
0:00:17]} 28. Bxe4 {[%clk 0:01:14]} 28... Qc7 {[%clk 0:00:17.2]} 29. g3 {[%clk
0:01:10.3]} 29... Qc5 {[%clk 0:00:17.2]} 30. Qf3 {[%clk 0:01:08.2]} 30... Qe7
{[%clk 0:00:13.6]} 31. Rd3 {[%clk 0:01:05]} 31... Kg7 {[%clk 0:00:12.9]} 32. Rb3
{[%clk 0:01:05]} 32... Qf6 {[%clk 0:00:12.8]} 33. Qe2 {[%clk 0:00:52.5]} 33...
Rc1+ {[%clk 0:00:12.6]} 34. Kg2 {[%clk 0:00:52.9]} 34... Re1 {[%clk 0:00:12.9]}
35. Qc4 {[%clk 0:00:52.1]} 35... Qe5 {[%clk 0:00:09.5]} 36. Bc6 {[%clk
0:00:50.8]} 36... Bc7 {[%clk 0:00:05.7]} 37. Rb7 {[%clk 0:00:48.3]} 37... Bd6
{[%clk 0:00:05.4]} 38. Be8 {[%clk 0:00:46.6]} 38... Qe4+ {[%clk 0:00:05.4]} 39.
Qxe4 {[%clk 0:00:46.7]} 39... Rxe4 {[%clk 0:00:06.3]} 40. Rxf7+ {[%clk
0:00:46.4]} 40... Kg8 {[%clk 0:00:06.8]} 41. Ra7 {[%clk 0:00:43]} 41... e5
{[%clk 0:00:06.6]} 42. a4 {[%clk 0:00:41.2]} 42... Re2 {[%clk 0:00:05.7]} 43.
Ra8 {[%clk 0:00:13.9]} 43... Kg7 {[%clk 0:00:05.4]} 44. Kf3 {[%clk 0:00:13]}
44... Rc2 {[%clk 0:00:04.5]} 45. a5 {[%clk 0:00:11.1]} 45... Bc5 {[%clk
0:00:04.8]} 46. a6 {[%clk 0:00:10.9]} 46... Rxf2+ {[%clk 0:00:04.9]} 47. Ke4
{[%clk 0:00:11.8]} 47... Bd4 {[%clk 0:00:05.1]} 48. h4 {[%clk 0:00:10.1]} 48...
Ra2 {[%clk 0:00:05.1]} 49. Bc6 {[%clk 0:00:08.6]} 49... h5 {[%clk 0:00:03.8]}
50. Bb7 {[%clk 0:00:08.7]} 50... Ra5 {[%clk 0:00:03.8]} 51. Rd8 {[%clk 0:00:09]}
51... Kf6 {[%clk 0:00:04.2]} 52. Rd7 {[%clk 0:00:07.1]} 52... Ra3 {[%clk
0:00:03.9]} 53. Rd6+ {[%clk 0:00:05.5]} 53... Kg7 {[%clk 0:00:04]} 54. Rd7+
{[%clk 0:00:04.1]} 54... Kf6 {[%clk 0:00:04.2]} 55. Rd6+ {[%clk 0:00:04.7]}
55... Kg7 {[%clk 0:00:04.7]} 56. Rd8 {[%clk 0:00:05.5]} 56... Kf6 {[%clk
0:00:05.2]} 57. Kd5 {[%clk 0:00:05.4]} 57... Ra5+ {[%clk 0:00:05]} 58. Kc4
{[%clk 0:00:05.7]} 58... Ra3 {[%clk 0:00:05.4]} 59. Kb5 {[%clk 0:00:05.2]} 59...
Rb3+ {[%clk 0:00:05.8]} 60. Ka4 {[%clk 0:00:05.3]} 60... Rb1 {[%clk 0:00:05.9]}
61. Ka5 {[%clk 0:00:04.9]} 61... Ra1+ {[%clk 0:00:06]} 62. Kb5 {[%clk
0:00:05.2]} 62... Rb1+ {[%clk 0:00:06.7]} 63. Kc4 {[%clk 0:00:05.9]} 63... Rc1+
{[%clk 0:00:07]} 64. Kd3 {[%clk 0:00:06.5]} 64... Ra1 {[%clk 0:00:07.4]} 65. Ke2
{[%clk 0:00:06.5]} 65... Ra2+ {[%clk 0:00:07.7]} 66. Kf3 {[%clk 0:00:06.5]}
66... Ra3+ {[%clk 0:00:08.3]} 67. Ke4 {[%clk 0:00:06.9]} 67... Ra4 {[%clk
0:00:09]} 68. Kd5 {[%clk 0:00:07.1]} 68... Ra3 {[%clk 0:00:08.5]} 69. Kc4 {[%clk
0:00:07.1]} 69... Rc3+ {[%clk 0:00:08.5]} 70. Kb4 {[%clk 0:00:07.2]} 70... Rc1
{[%clk 0:00:08.5]} 71. Rxd4 {[%clk 0:00:07.3]} 71... exd4 {[%clk 0:00:07.9]} 72.
a7 {[%clk 0:00:07.9]} 72... Ra1 {[%clk 0:00:08.3]} 73. a8=Q {[%clk 0:00:08.1]}
73... Rxa8 {[%clk 0:00:08.9]} 74. Bxa8 {[%clk 0:00:08.8]} 74... g5 {[%clk
0:00:09.7]} 75. Kc4 {[%clk 0:00:03.6]} 75... gxh4 {[%clk 0:00:09.8]} 76. gxh4
{[%clk 0:00:04.5]} 76... Kf5 {[%clk 0:00:09.5]} 77. Bf3 {[%clk 0:00:05.1]} 77...
Kf4 {[%clk 0:00:08.7]} 78. Bxh5 {[%clk 0:00:05.3]} 78... Kg3 {[%clk 0:00:09.2]}
79. Kxd4 {[%clk 0:00:05.8]} 79... Kxh4 {[%clk 0:00:10]} 1/2-1/2